[Event "Live Chess"]
[Site "Chess.com"]
[Date "2024.06.02"]
[Round "-"]
[White "best137"]
[Black "Dhaydon19"]
[Result "0-1"]
[WhiteElo "1519"]
[BlackElo "2631"]
[TimeControl "300"]
[EndTime "2:14:56 PDT"]
[Termination "Dhaydon19 won by resignation"]

1. c4 {[%clk 0:04:58.1]} 1... c6 {[%clk 0:04:59.9]} 2. d4 {[%clk 0:04:55.1]}
2... d5 {[%clk 0:04:59.8]} 3. Nf3 {[%clk 0:04:48.5]} 3... Nf6 {[%clk 0:04:57.8]}
4. Nc3 {[%clk 0:04:44.6]} 4... e6 {[%clk 0:04:56.5]} 5. g3 {[%clk 0:04:41.8]}
5... Nbd7 {[%clk 0:04:54.8]} 6. cxd5 {[%clk 0:04:39.5]} 6... cxd5 {[%clk
0:04:52.9]} 7. Bg2 {[%clk 0:04:37.7]} 7... a6 {[%clk 0:04:52]} 8. O-O {[%clk
0:04:36.6]} 8... b5 {[%clk 0:04:50.4]} 9. Bg5 {[%clk 0:04:35]} 9... Be7 {[%clk
0:04:47.5]} 10. a4 {[%clk 0:04:31.5]} 10... b4 {[%clk 0:04:46.2]} 11. Na2 {[%clk
0:04:26.5]} 11... a5 {[%clk 0:04:45.4]} 12. Nc1 {[%clk 0:04:23.5]} 12... Ba6
{[%clk 0:04:44]} 13. Nd3 {[%clk 0:04:16.1]} 13... O-O {[%clk 0:04:43.4]} 14.
Nde5 {[%clk 0:03:47.9]} 14... Nxe5 {[%clk 0:04:32.9]} 15. Nxe5 {[%clk
0:03:46.1]} 15... Rc8 {[%clk 0:04:30.9]} 16. Rc1 {[%clk 0:03:19.5]} 16... Qd6
{[%clk 0:04:20.2]} 17. Re1 {[%clk 0:02:46.6]} 17... Rxc1 {[%clk 0:04:16.6]} 18.
Qxc1 {[%clk 0:02:42.4]} 18... Rc8 {[%clk 0:04:16]} 19. Qd2 {[%clk 0:02:31.3]}
19... h6 {[%clk 0:04:13.5]} 20. Bf4 {[%clk 0:02:21.3]} 20... Qb6 {[%clk
0:04:11.6]} 21. e4 {[%clk 0:02:05.2]} 21... dxe4 {[%clk 0:04:09.2]} 22. Bxe4
{[%clk 0:02:03.7]} 22... Nxe4 {[%clk 0:04:08.3]} 23. Rxe4 {[%clk 0:02:03.6]}
23... Bb7 {[%clk 0:04:07.3]} 24. Re1 {[%clk 0:01:58.8]} 24... Ba8 {[%clk
0:04:04]} 25. Rc1 {[%clk 0:01:47.5]} 25... Rxc1+ {[%clk 0:04:00.3]} 26. Qxc1
{[%clk 0:01:45.7]} 26... Qb7 {[%clk 0:04:00.2]} 27. f3 {[%clk 0:01:37]} 27... f6
{[%clk 0:03:58.7]} 28. Ng6 {[%clk 0:01:29.4]} 28... Bd8 {[%clk 0:03:44.6]} 29.
Qe3 {[%clk 0:01:04.8]} 29... Kf7 {[%clk 0:03:39.5]} 30. Nh8+ {[%clk 0:00:59.5]}
30... Kg8 {[%clk 0:03:37.7]} 31. Qxe6+ {[%clk 0:00:44.2]} 31... Kxh8 {[%clk
0:03:35.4]} 32. Qe8+ {[%clk 0:00:40.7]} 32... Kh7 {[%clk 0:03:34.1]} 33. Qxd8
{[%clk 0:00:18.4]} 33... Qxf3 {[%clk 0:03:31.8]} 34. d5 {[%clk 0:00:08.9]} 34...
Bxd5 {[%clk 0:03:28.7]} 0-1

[Event "Live Chess"]
[Site "Chess.com"]
[Date "2024.06.02"]
[Round "-"]
[White "TedUdale"]
[Black "upoe610"]
[Result "1-0"]
[WhiteElo "2114"]
[BlackElo "2155"]
[TimeControl "300"]
[EndTime "2:15:08 PDT"]
[Termination "TedUdale won by resignation"]

1. e4 {[%clk 0:04:56.7]} 1... e5 {[%clk 0:04:47.7]} 2. Nf3 {[%clk 0:04:53.6]}
2... Nc6 {[%clk 0:04:26.9]} 3. Nc3 {[%clk 0:04:44.7]} 3... Nf6 {[%clk
0:04:25.5]} 4. Bc4 {[%clk 0:04:40.8]} 4... Nxe4 {[%clk 0:04:24.2]} 5. Bxf7+
{[%clk 0:04:39.2]} 5... Kxf7 {[%clk 0:04:21.2]} 6. Nxe4 {[%clk 0:04:38.7]} 6...
d5 {[%clk 0:04:20.1]} 7. Neg5+ {[%clk 0:04:37.7]} 7... Kg8 {[%clk 0:04:19.5]} 8.
d4 {[%clk 0:04:36.8]} 8... e4 {[%clk 0:04:18.6]} 9. Ne5 {[%clk 0:04:32.6]} 9...
Nxe5 {[%clk 0:04:15.6]} 10. dxe5 {[%clk 0:04:31.2]} 10... h6 {[%clk 0:04:15.1]}
11. Nxe4 {[%clk 0:04:26.5]} 11... Be6 {[%clk 0:04:12.1]} 12. Ng3 {[%clk
0:04:23.3]} 12... Bc5 {[%clk 0:04:10.2]} 13. O-O {[%clk 0:04:20.7]} 13... Qh4
{[%clk 0:04:06.1]} 14. Kh1 {[%clk 0:04:15.5]} 14... Rf8 {[%clk 0:04:03]} 15. f4
{[%clk 0:04:12.7]} 15... Bg4 {[%clk 0:03:54.6]} 16. Qxd5+ {[%clk 0:04:07.4]}
16... Kh7 {[%clk 0:03:53.4]} 17. Qxc5 {[%clk 0:04:00.4]} 17... Rf7 {[%clk
0:03:45.2]} 18. f5 {[%clk 0:03:51.1]} 18... Rhf8 {[%clk 0:03:42.2]} 19. Qc4
{[%clk 0:03:40.4]} 19... b5 {[%clk 0:03:32.4]} 20. Qe4 {[%clk 0:03:36.1]} 20...
Kh8 {[%clk 0:03:27.8]} 21. b3 {[%clk 0:03:27.5]} 21... g6 {[%clk 0:03:19.2]} 22.
f6 {[%clk 0:03:21.5]} 22... g5 {[%clk 0:03:10]} 23. Ba3 {[%clk 0:03:13]} 23...
Re8 {[%clk 0:03:06.5]} 24. Rae1 {[%clk 0:03:06.9]} 24... Be6 {[%clk 0:03:05.1]}
25. Rd1 {[%clk 0:02:48.8]} 25... Qxe4 {[%clk 0:03:00.1]} 26. Nxe4 {[%clk
0:02:48.2]} 26... Bg4 {[%clk 0:02:55.4]} 27. Rd5 {[%clk 0:02:41.5]} 27... c6
{[%clk 0:02:54.3]} 28. Rc5 {[%clk 0:02:40.3]} 28... Re6 {[%clk 0:02:52.9]} 29.
Nd6 {[%clk 0:02:36.3]} 29... Rf8 {[%clk 0:02:45.3]} 30. f7 {[%clk 0:02:31]}
30... Be2 {[%clk 0:02:43]} 31. Rf6 {[%clk 0:02:27.9]} 31... Bg4 {[%clk
0:02:37.8]} 32. Ne4 {[%clk 0:02:22.5]} 32... Rxf6 {[%clk 0:02:34.4]} 33. Nxf6
{[%clk 0:02:10.3]} 33... Rxf7 {[%clk 0:02:31.3]} 34. h3 {[%clk 0:02:05.2]} 34...
Be6 {[%clk 0:02:29.7]} 35. Rxc6 {[%clk 0:02:02.6]} 35... Bf5 {[%clk 0:02:28.4]}
36. Rd6 {[%clk 0:01:50.5]} 36... Kg7 {[%clk 0:02:24.7]} 37. Rd8 {[%clk
0:01:45.4]} 37... Rc7 {[%clk 0:02:23.8]} 38. Ne8+ {[%clk 0:01:36]} 1-0

[Event "Live Chess"]
[Site "Chess.com"]
[Date "2024.06.02"]
[Round "-"]
[White "Purple1szed"]
[Black "ameetghasi100"]
[Result "0-1"]
[WhiteElo "2080"]
[BlackElo "2788"]
[TimeControl "300"]
[EndTime "2:15:09 PDT"]
[Termination "ameetghasi100 won by checkmate"]

1. e4 {[%clk 0:04:57.8]} 1... c5 {[%clk 0:04:59.9]} 2. c3 {[%clk 0:04:56.4]}
2... Nc6 {[%clk 0:04:59.8]} 3. d4 {[%clk 0:04:55.9]} 3... d6 {[%clk 0:04:57.5]}
4. Nf3 {[%clk 0:04:53.4]} 4... cxd4 {[%clk 0:04:56]} 5. cxd4 {[%clk 0:04:53.3]}
5... Bg4 {[%clk 0:04:53.2]} 6. d5 {[%clk 0:04:51.2]} 6... Bxf3 {[%clk
0:04:49.3]} 7. Qxf3 {[%clk 0:04:46.3]} 7... Nb8 {[%clk 0:04:49.2]} 8. Bb5+
{[%clk 0:04:43.5]} 8... Nd7 {[%clk 0:04:49.1]} 9. O-O {[%clk 0:04:35.8]} 9...
Nf6 {[%clk 0:04:47.5]} 10. Nc3 {[%clk 0:04:33.1]} 10... a6 {[%clk 0:04:45.7]}
11. Ba4 {[%clk 0:04:29.9]} 11... b5 {[%clk 0:04:43.8]} 12. Bc2 {[%clk
0:04:28.2]} 12... g6 {[%clk 0:04:43.7]} 13. Bg5 {[%clk 0:04:24.6]} 13... Bg7
{[%clk 0:04:42.1]} 14. Rae1 {[%clk 0:04:23]} 14... h6 {[%clk 0:04:40.3]} 15. Bf4
{[%clk 0:04:20.8]} 15... g5 {[%clk 0:04:37.1]} 16. Bg3 {[%clk 0:04:18.9]} 16...
g4 {[%clk 0:04:37]} 17. Qd3 {[%clk 0:04:14.1]} 17... h5 {[%clk 0:04:36.9]} 18.
e5 {[%clk 0:04:11.4]} 18... dxe5 {[%clk 0:04:34]} 19. Bxe5 {[%clk 0:04:10.3]}
19... Nxe5 {[%clk 0:04:33.9]} 20. Rxe5 {[%clk 0:04:08.6]} 20... Qd6 {[%clk
0:04:33.3]} 21. Rfe1 {[%clk 0:04:05.9]} 21... Ra7 {[%clk 0:04:32.9]} 22. Qf5
{[%clk 0:03:59.7]} 22... Rc7 {[%clk 0:04:21.8]} 23. Bb1 {[%clk 0:03:48.6]} 23...
h4 {[%clk 0:04:20.9]} 24. Ne4 {[%clk 0:03:42.7]} 24... Nxe4 {[%clk 0:04:19.5]}
25. R5xe4 {[%clk 0:03:39.4]} 25... g3 {[%clk 0:04:18.5]} 26. h3 {[%clk
0:03:21.1]} 26... gxf2+ {[%clk 0:04:16.4]} 27. Qxf2 {[%clk 0:03:20.3]} 27... Bf6
{[%clk 0:04:11.2]} 28. Qf4 {[%clk 0:03:03.5]} 28... Qxf4 {[%clk 0:03:40.9]} 29.
Rxf4 {[%clk 0:03:03.4]} 29... Bxb2 {[%clk 0:03:36.6]} 30. d6 {[%clk 0:03:00.9]}
30... Rd7 {[%clk 0:03:36.1]} 31. dxe7 {[%clk 0:02:28.9]} 31... Rxe7 {[%clk
0:03:36]} 32. Rxe7+ {[%clk 0:02:16.6]} 32... Kxe7 {[%clk 0:03:35.9]} 33. Be4
{[%clk 0:02:15.2]} 33... Bd4+ {[%clk 0:03:30.9]} 34. Kf1 {[%clk 0:02:13.3]}
34... Be5 {[%clk 0:03:28.1]} 35. Rf2 {[%clk 0:02:04.2]} 35... Rd8 {[%clk
0:03:23.8]} 36. Bb7 {[%clk 0:01:57.7]} 36... a5 {[%clk 0:03:20.3]} 37. Re2
{[%clk 0:01:50.7]} 37... f6 {[%clk 0:03:18.2]} 38. Re4 {[%clk 0:01:42.3]} 38...
Rd2 {[%clk 0:03:12.2]} 39. Ba6 {[%clk 0:01:31.1]} 39... b4 {[%clk 0:03:04.6]}
40. Bc4 {[%clk 0:01:29.1]} 40... a4 {[%clk 0:03:02.5]} 41. Rxh4 {[%clk 0:01:24]}
41... b3 {[%clk 0:02:43.6]} 42. Bxb3 {[%clk 0:01:05.7]} 42... axb3 {[%clk
0:02:43.5]} 43. axb3 {[%clk 0:01:05.6]} 43... Rb2 {[%clk 0:02:40.3]} 44. Rb4
{[%clk 0:01:02.1]} 44... Bg3 {[%clk 0:02:38.2]} 45. Rb7+ {[%clk 0:00:57.9]}
45... Ke6 {[%clk 0:02:34.9]} 46. Rb6+ {[%clk 0:00:56.3]} 46... Kf7 {[%clk
0:02:33.4]} 47. b4 {[%clk 0:00:50]} 47... Rf2+ {[%clk 0:02:31.2]} 48. Kg1 {[%clk
0:00:47.7]} 48... Re2 {[%clk 0:02:30.2]} 49. Kf1 {[%clk 0:00:46.4]} 49... Re1#
{[%clk 0:02:29.1]} 0-1

[Event "Live Chess"]
[Site "Chess.com"]
[Date "2024.06.02"]
[Round "-"]
[White "lateforthesky"]
[Black "Crowded_House"]
[Result "1-0"]
[WhiteElo "2077"]
[BlackElo "1689"]
[TimeControl "300"]
[EndTime "2:15:48 PDT"]
[Termination "lateforthesky won by resignation"]

1. e4 {[%clk 0:04:54.8]} 1... e6 {[%clk 0:04:59.5]} 2. d4 {[%clk 0:04:53]} 2...
d5 {[%clk 0:04:59.2]} 3. e5 {[%clk 0:04:52.4]} 3... c5 {[%clk 0:04:57.7]} 4. c3
{[%clk 0:04:52]} 4... Nc6 {[%clk 0:04:56.8]} 5. Nf3 {[%clk 0:04:51.4]} 5... Qb6
{[%clk 0:04:56.3]} 6. Bd3 {[%clk 0:04:50.5]} 6... Bd7 {[%clk 0:04:55.8]} 7. O-O
{[%clk 0:04:49.1]} 7... Nge7 {[%clk 0:04:54.2]} 8. h4 {[%clk 0:04:44]} 8... cxd4
{[%clk 0:04:32.2]} 9. Re1 {[%clk 0:04:41]} 9... dxc3 {[%clk 0:04:29.2]} 10. Nxc3
{[%clk 0:04:39.5]} 10... Qc7 {[%clk 0:04:17.9]} 11. h5 {[%clk 0:04:36.4]} 11...
h6 {[%clk 0:04:15.3]} 12. Nb5 {[%clk 0:04:32.9]} 1-0

[Event "Live Chess"]
[Site "Chess.com"]
[Date "2024.06.02"]
[Round "-"]
[White "A3ndrey9"]
[Black "Bradfield133"]
[Result "0-1"]
[WhiteElo "1273"]
[BlackElo "1872"]
[TimeControl "300"]
[EndTime "2:15:54 PDT"]
[Termination "Bradfield133 won on time"]

1. Nf3 {[%clk 0:04:56.9]} 1... c5 {[%clk 0:04:58.5]} 2. c4 {[%clk 0:04:55.6]}
2... g6 {[%clk 0:04:54.9]} 3. d4 {[%clk 0:04:54.8]} 3... cxd4 {[%clk 0:04:52.7]}
4. Nxd4 {[%clk 0:04:53.5]} 4... Bg7 {[%clk 0:04:51.9]} 5. g3 {[%clk 0:04:50.2]}
5... Nc6 {[%clk 0:04:49.5]} 6. Nxc6 {[%clk 0:04:48.5]} 6... bxc6 {[%clk
0:04:47.4]} 7. Bg2 {[%clk 0:04:48.1]} 7... Nf6 {[%clk 0:04:44.4]} 8. O-O {[%clk
0:04:44.6]} 8... O-O {[%clk 0:04:42.9]} 9. Nc3 {[%clk 0:04:42.4]} 9... Qc7
{[%clk 0:04:36.5]} 10. Bf4 {[%clk 0:04:40]} 10... d6 {[%clk 0:04:31.5]} 11. Qc2
{[%clk 0:04:36.1]} 11... e5 {[%clk 0:04:28.7]} 12. Bg5 {[%clk 0:04:34.4]} 12...
h6 {[%clk 0:04:26]} 13. Bd2 {[%clk 0:04:27.1]} 13... Be6 {[%clk 0:04:18.6]} 14.
b3 {[%clk 0:04:15.4]} 14... Rad8 {[%clk 0:04:11.8]} 15. e4 {[%clk 0:04:07.9]}
15... Nd7 {[%clk 0:04:05.3]} 16. Na4 {[%clk 0:03:53.5]} 16... f5 {[%clk
0:03:55.6]} 17. Rac1 {[%clk 0:03:45.9]} 17... f4 {[%clk 0:03:44.5]} 18. c5
{[%clk 0:03:32.2]} 18... d5 {[%clk 0:03:36.6]} 19. exd5 {[%clk 0:03:28.3]} 19...
cxd5 {[%clk 0:03:30.3]} 20. c6 {[%clk 0:03:21.7]} 20... Nb6 {[%clk 0:03:28.4]}
21. Nxb6 {[%clk 0:03:18.7]} 21... axb6 {[%clk 0:03:26.3]} 22. a4 {[%clk
0:03:14.1]} 22... f3 {[%clk 0:03:19]} 23. Bh1 {[%clk 0:03:02.9]} 23... Bh3
{[%clk 0:02:59.3]} 24. Rfe1 {[%clk 0:02:54.1]} 24... Bf5 {[%clk 0:02:57.6]} 25.
Qa2 {[%clk 0:02:27.9]} 25... e4 {[%clk 0:02:53.5]} 26. a5 {[%clk 0:02:20.7]}
26... bxa5 {[%clk 0:02:29.5]} 27. Bxa5 {[%clk 0:02:19]} 27... Qa7 {[%clk
0:02:28.4]} 28. Qd2 {[%clk 0:01:22.3]} 28... Ra8 {[%clk 0:02:12.1]} 29. Qxd5+
{[%clk 0:01:07.4]} 29... Kh7 {[%clk 0:02:04.1]} 30. b4 {[%clk 0:00:54.6]} 30...
Bd4 {[%clk 0:01:51.5]} 31. Qxd4 {[%clk 0:00:49.8]} 31... Qxd4 {[%clk 0:01:48.6]}
32. c7 {[%clk 0:00:48.1]} 32... Rac8 {[%clk 0:01:43.1]} 33. b5 {[%clk
0:00:45.3]} 33... Qa4 {[%clk 0:01:38.5]} 34. Ra1 {[%clk 0:00:15]} 34... Qxb5
{[%clk 0:01:36.7]} 35. Rec1 {[%clk 0:00:14.5]} 35... Rf7 {[%clk 0:01:26.7]} 36.
Bd2 {[%clk 0:00:07]} 36... Rfxc7 {[%clk 0:01:21.9]} 37. Rxc7+ {[%clk 0:00:05.7]}
37... Rxc7 {[%clk 0:01:20]} 38. Bf4 {[%clk 0:00:04.6]} 38... Rb7 {[%clk
0:01:16.6]} 0-1

[Event "Live Chess"]
[Site "Chess.com"]
[Date "2024.06.02"]
[Round "-"]
[White "bonantagulo"]
[Black "nitrofish07"]
[Result "1-0"]
[WhiteElo "2240"]
[BlackElo "2071"]
[TimeControl "300"]
[EndTime "2:16:15 PDT"]
[Termination "bonantagulo won on time"]

1. d4 {[%clk 0:04:58.5]} 1... d5 {[%clk 0:04:58.8]} 2. c4 {[%clk 0:04:57.4]}
2... c6 {[%clk 0:04:58.2]} 3. Nc3 {[%clk 0:04:55.9]} 3... Nf6 {[%clk 0:04:57.6]}
4. Nf3 {[%clk 0:04:54.9]} 4... dxc4 {[%clk 0:04:57]} 5. a4 {[%clk 0:04:53.4]}
5... Bf5 {[%clk 0:04:55.7]} 6. Ne5 {[%clk 0:04:51.8]} 6... e6 {[%clk 0:04:52.8]}
7. f3 {[%clk 0:04:50.7]} 7... Bb4 {[%clk 0:04:21.2]} 8. e4 {[%clk 0:04:48.2]}
8... Bxe4 {[%clk 0:04:09.6]} 9. fxe4 {[%clk 0:04:48.1]} 9... Nxe4 {[%clk
0:04:09.5]} 10. Nxf7 {[%clk 0:04:13.7]} 10... Kxf7 {[%clk 0:04:05.8]} 11. Qf3+
{[%clk 0:04:13.2]} 11... Nf6 {[%clk 0:03:50.8]} 12. Bxc4 {[%clk 0:04:12.4]}
12... Qxd4 {[%clk 0:03:44.8]} 13. Bb3 {[%clk 0:04:00.9]} 13... Re8 {[%clk
0:03:23.4]} 14. Bd2 {[%clk 0:03:45.5]} 14... Bxc3 {[%clk 0:03:16.3]} 15. Bxc3
{[%clk 0:03:40.6]} 15... Qe4+ {[%clk 0:03:15]} 16. Kf2 {[%clk 0:03:33.5]} 16...
Qxf3+ {[%clk 0:03:13.2]} 17. gxf3 {[%clk 0:03:31.9]} 17... Nbd7 {[%clk
0:03:12.9]} 18. Rhe1 {[%clk 0:03:26.3]} 18... Nc5 {[%clk 0:03:08.1]} 19. Bc4
{[%clk 0:03:18.6]} 19... Rad8 {[%clk 0:03:06.1]} 20. Rad1 {[%clk 0:02:57.5]}
20... Nd5 {[%clk 0:03:00.7]} 21. Bd4 {[%clk 0:02:34.7]} 21... Nxa4 {[%clk
0:02:42]} 22. Bxa7 {[%clk 0:02:32.2]} 22... Nxb2 {[%clk 0:02:39.1]} 23. Rc1
{[%clk 0:02:27.3]} 23... Nxc4 {[%clk 0:02:29.8]} 24. Rxc4 {[%clk 0:02:27.2]}
24... Ra8 {[%clk 0:02:26.4]} 25. Bc5 {[%clk 0:02:24.7]} 25... Ra2+ {[%clk
0:02:24.6]} 26. Kg3 {[%clk 0:02:23.2]} 26... h5 {[%clk 0:02:19.6]} 27. h4 {[%clk
0:02:21.4]} 27... e5 {[%clk 0:02:02.8]} 28. Bd6 {[%clk 0:02:19.4]} 28... Nf4
{[%clk 0:01:56.5]} 29. Rxe5 {[%clk 0:02:06.7]} 29... Rxe5 {[%clk 0:01:13.7]} 30.
Bxe5 {[%clk 0:01:54.7]} 30... Ne6 {[%clk 0:01:06.8]} 31. Rc1 {[%clk 0:01:41.9]}
31... Ra5 {[%clk 0:01:00.1]} 32. Bb8 {[%clk 0:01:17]} 32... c5 {[%clk
0:00:56.5]} 33. Rb1 {[%clk 0:00:59.6]} 33... b5 {[%clk 0:00:52.5]} 34. Bd6
{[%clk 0:00:54.9]} 34... b4 {[%clk 0:00:48.1]} 35. Bxc5 {[%clk 0:00:43.8]} 35...
Rxc5 {[%clk 0:00:45]} 36. Rxb4 {[%clk 0:00:43.7]} 36... Kf6 {[%clk 0:00:43.2]}
37. Rb8 {[%clk 0:00:39.8]} 37... g6 {[%clk 0:00:42.1]} 38. Rb6 {[%clk
0:00:36.5]} 38... Rc3 {[%clk 0:00:40.1]} 39. Rb4 {[%clk 0:00:31.9]} 39... Ke5
{[%clk 0:00:35.5]} 40. Re4+ {[%clk 0:00:30.9]} 40... Kf5 {[%clk 0:00:32.9]} 41.
Ra4 {[%clk 0:00:30.1]} 41... Rc5 {[%clk 0:00:24.1]} 42. Rb4 {[%clk 0:00:26.5]}
42... Re5 {[%clk 0:00:22]} 43. Ra4 {[%clk 0:00:24.5]} 43... Kf6 {[%clk
0:00:21.5]} 44. Ra6 {[%clk 0:00:22.8]} 44... Rf5 {[%clk 0:00:20.7]} 45. Ra4
{[%clk 0:00:19.8]} 45... Ke5 {[%clk 0:00:19.4]} 46. Ra5+ {[%clk 0:00:18.8]}
46... Kd6 {[%clk 0:00:15.7]} 47. Ra4 {[%clk 0:00:18.7]} 47... Nc5 {[%clk
0:00:13.5]} 48. Rb4 {[%clk 0:00:18.2]} 48... Kd5 {[%clk 0:00:12.7]} 49. Rb5
{[%clk 0:00:16.4]} 49... Kd4 {[%clk 0:00:11.9]} 50. Rb8 {[%clk 0:00:15.8]} 50...
Ne6 {[%clk 0:00:08.9]} 51. Rb6 {[%clk 0:00:14.1]} 51... Ke5 {[%clk 0:00:08.2]}
52. Rb5+ {[%clk 0:00:13.2]} 52... Kf6 {[%clk 0:00:07.4]} 53. Rb8 {[%clk
0:00:13.1]} 53... Re5 {[%clk 0:00:06]} 54. Re8 {[%clk 0:00:12.2]} 54... Rd5
{[%clk 0:00:05.5]} 55. Ra8 {[%clk 0:00:11.3]} 55... Rd3 {[%clk 0:00:05.4]} 56.
Ra6 {[%clk 0:00:10.5]} 56... Ke5 {[%clk 0:00:04.8]} 57. Ra5+ {[%clk 0:00:10.1]}
57... Kd4 {[%clk 0:00:04.2]} 58. Ra4+ {[%clk 0:00:10]} 58... Ke3 {[%clk
0:00:04.1]} 59. Ra6 {[%clk 0:00:09.5]} 59... Ke2 {[%clk 0:00:04]} 60. Rxe6+
{[%clk 0:00:08.7]} 60... Kd2 {[%clk 0:00:02.6]} 61. Rxg6 {[%clk 0:00:08.6]}
61... Ke3 {[%clk 0:00:01.7]} 62. Rg5 {[%clk 0:00:08.5]} 62... Kd2 {[%clk
0:00:01.6]} 63. Rxh5 {[%clk 0:00:08.1]} 63... Ke2 {[%clk 0:00:01.5]} 64. Rg5
{[%clk 0:00:08]} 64... Rxf3+ {[%clk 0:00:01.4]} 65. Kg4 {[%clk 0:00:07]} 65...
Rd3 {[%clk 0:00:01.3]} 66. Kh5 {[%clk 0:00:06.9]} 66... Kd2 {[%clk 0:00:01.2]}
67. Kh6 {[%clk 0:00:06.3]} 67... Rd4 {[%clk 0:00:01.1]} 68. h5 {[%clk
0:00:06.2]} 68... Rh4 {[%clk 0:00:00.7]} 69. Rg6 {[%clk 0:00:06.1]} 69... Rh1
{[%clk 0:00:00.6]} 70. Kg5 {[%clk 0:00:05.7]} 70... Ke2 {[%clk 0:00:00.5]} 71.
h6 {[%clk 0:00:05.6]} 71... Kf2 {[%clk 0:00:00.4]} 72. Kf6 {[%clk 0:00:05.1]}
72... Rg1 {[%clk 0:00:00.3]} 73. Kg7 {[%clk 0:00:05]} 73... Rh1 {[%clk
0:00:00.1]} 74. h7 {[%clk 0:00:04.5]} 1-0

[Event "Live Chess"]
[Site "Chess.com"]
[Date "2024.06.02"]
[Round "-"]
[White "GoldsmanB"]
[Black "booktrunk"]
[Result "0-1"]
[WhiteElo "1102"]
[BlackElo "1509"]
[TimeControl "300"]
[EndTime "2:16:24 PDT"]
[Termination "booktrunk won by resignation"]

1. d4 {[%clk 0:04:57.3]} 1... b6 {[%clk 0:04:51.8]} 2. e4 {[%clk 0:04:49.5]}
2... Bb7 {[%clk 0:04:51.1]} 3. Nc3 {[%clk 0:04:47.7]} 3... h6 {[%clk 0:04:47.6]}
4. Nf3 {[%clk 0:04:44.1]} 4... e6 {[%clk 0:04:44.6]} 5. Be3 {[%clk 0:04:42.4]}
5... Nf6 {[%clk 0:04:40.4]} 6. e5 {[%clk 0:04:40.4]} 6... Nd5 {[%clk 0:04:38.4]}
7. Bc4 {[%clk 0:04:38.5]} 7... Nxc3 {[%clk 0:04:36.8]} 8. bxc3 {[%clk
0:04:36.6]} 8... Nc6 {[%clk 0:04:28.9]} 9. O-O {[%clk 0:04:33.2]} 9... Na5
{[%clk 0:04:27.2]} 10. Bb3 {[%clk 0:04:30.9]} 10... Be7 {[%clk 0:04:20.7]} 11.
Qd3 {[%clk 0:04:27.8]} 11... Qc8 {[%clk 0:04:16.4]} 12. d5 {[%clk 0:04:21.7]}
12... Ba6 {[%clk 0:04:14.1]} 13. c4 {[%clk 0:04:13.1]} 13... exd5 {[%clk
0:04:12.5]} 14. Qd2 {[%clk 0:04:04.5]} 14... dxc4 {[%clk 0:04:09.1]} 15. Ba4
{[%clk 0:03:53]} 15... c3 {[%clk 0:04:07.2]} 16. Qe1 {[%clk 0:03:49.7]} 16...
Bxf1 {[%clk 0:04:05.7]} 17. Qxf1 {[%clk 0:03:49.6]} 17... c6 {[%clk 0:04:01.6]}
18. Rd1 {[%clk 0:03:45.1]} 18... O-O {[%clk 0:03:58.9]} 19. Bd4 {[%clk
0:03:31.5]} 19... b5 {[%clk 0:03:55]} 20. Bb3 {[%clk 0:03:29]} 20... Nxb3 {[%clk
0:03:53.2]} 21. axb3 {[%clk 0:03:26.7]} 21... c5 {[%clk 0:03:49.6]} 22. Bxc3
{[%clk 0:03:22.5]} 22... b4 {[%clk 0:03:48.4]} 23. Bb2 {[%clk 0:03:21]} 23... a5
{[%clk 0:03:45.7]} 24. Qb5 {[%clk 0:03:18.1]} 24... Qc6 {[%clk 0:03:38.7]} 25.
Qd3 {[%clk 0:03:14.3]} 25... a4 {[%clk 0:03:36.8]} 26. Qxd7 {[%clk 0:03:09.9]}
26... Qxd7 {[%clk 0:03:34.6]} 27. Rxd7 {[%clk 0:03:09.8]} 27... Bg5 {[%clk
0:03:28.7]} 28. Rd5 {[%clk 0:02:57.4]} 28... Rfc8 {[%clk 0:03:24.7]} 29. Nxg5
{[%clk 0:02:53.9]} 29... hxg5 {[%clk 0:03:22.3]} 30. Rd7 {[%clk 0:02:48.8]}
30... Kf8 {[%clk 0:03:15.9]} 31. h3 {[%clk 0:02:47.3]} 31... axb3 {[%clk
0:03:13.3]} 32. cxb3 {[%clk 0:02:44.6]} 32... Rd8 {[%clk 0:03:09.6]} 33. Rc7
{[%clk 0:02:38.1]} 33... Rdc8 {[%clk 0:03:08]} 34. Rd7 {[%clk 0:02:36.2]} 34...
Ra2 {[%clk 0:03:05.3]} 35. Bc1 {[%clk 0:02:30.1]} 35... Ra1 {[%clk 0:03:03.7]}
36. Rd1 {[%clk 0:02:25.8]} 36... c4 {[%clk 0:03:00.6]} 37. Kf1 {[%clk
0:02:22.6]} 37... cxb3 {[%clk 0:02:59.3]} 0-1

[Event "Live Chess"]
[Site "Chess.com"]
[Date "2024.06.02"]
[Round "-"]
[White "TigerTank70"]
[Black "wadsy27"]
[Result "1-0"]
[WhiteElo "2233"]
[BlackElo "2574"]
[TimeControl "300"]
[EndTime "2:16:26 PDT"]
[Termination "TigerTank70 won by resignation"]

1. e4 {[%clk 0:04:57.3]} 1... e6 {[%clk 0:04:45.6]} 2. d4 {[%clk 0:04:52.9]}
2... d5 {[%clk 0:04:45.2]} 3. e5 {[%clk 0:04:51.3]} 3... c5 {[%clk 0:04:44.3]}
4. c3 {[%clk 0:04:51]} 4... Nc6 {[%clk 0:04:43.3]} 5. Nf3 {[%clk 0:04:48.9]}
5... Qb6 {[%clk 0:04:42.6]} 6. a3 {[%clk 0:04:48.4]} 6... c4 {[%clk 0:04:40.9]}
7. Nbd2 {[%clk 0:04:47.2]} 7... Na5 {[%clk 0:04:40.1]} 8. Be2 {[%clk 0:04:45.5]}
8... Bd7 {[%clk 0:04:38.8]} 9. O-O {[%clk 0:04:44.2]} 9... Qc7 {[%clk
0:04:38.1]} 10. b3 {[%clk 0:04:38.1]} 10... cxb3 {[%clk 0:04:28.6]} 11. Bb2
{[%clk 0:04:37.7]} 11... Ne7 {[%clk 0:04:26.4]} 12. a4 {[%clk 0:04:34.9]} 12...
Qb6 {[%clk 0:04:20.8]} 13. Ba3 {[%clk 0:04:29.3]} 13... Nec6 {[%clk 0:04:11.4]}
14. Bxf8 {[%clk 0:04:18.9]} 14... Rxf8 {[%clk 0:04:11.3]} 15. Bb5 {[%clk
0:04:11.9]} 15... a6 {[%clk 0:04:10]} 16. Bd3 {[%clk 0:04:01.6]} 16... h6 {[%clk
0:04:05.5]} 17. Rb1 {[%clk 0:03:53.8]} 17... Qc7 {[%clk 0:03:44.5]} 18. Nxb3
{[%clk 0:03:49.9]} 18... Nxb3 {[%clk 0:03:43.6]} 19. Qxb3 {[%clk 0:03:43.8]}
19... Na5 {[%clk 0:03:39.1]} 20. Qb4 {[%clk 0:03:40.8]} 20... Rc8 {[%clk
0:03:30.9]} 21. Rfc1 {[%clk 0:03:31.6]} 21... Bc6 {[%clk 0:03:12.5]} 22. Nd2
{[%clk 0:03:13]} 22... f5 {[%clk 0:03:06.8]} 23. c4 {[%clk 0:03:08.4]} 23...
dxc4 {[%clk 0:02:55.7]} 24. Bxc4 {[%clk 0:03:04]} 24... Nxc4 {[%clk 0:02:45.7]}
25. Nxc4 {[%clk 0:03:00.2]} 25... Rd8 {[%clk 0:02:44.9]} 26. Nd6+ {[%clk
0:02:55.2]} 26... Rxd6 {[%clk 0:02:44.1]} 27. exd6 {[%clk 0:02:48.7]} 27... Qd7
{[%clk 0:02:42]} 28. d5 {[%clk 0:02:44.8]} 28... exd5 {[%clk 0:02:40.9]} 29.
Re1+ {[%clk 0:02:38.9]} 29... Kd8 {[%clk 0:02:39.8]} 30. Re7 {[%clk 0:02:36.8]}
30... Rf6 {[%clk 0:02:34.7]} 31. Qb6+ {[%clk 0:02:31.3]} 31... Kc8 {[%clk
0:02:33.9]} 32. Rxd7 {[%clk 0:02:28.9]} 1-0